﻿Body name,Body,Service,Responsible Unit,Expenses Type,Posting date,Transaction,Amount,Supplier name
D2N2-Derbyshire County Council,6000,D2N2,Digital Bootcamp W2,Training,01/03/2023,1900000324,"1,641.50",Purple Beard Ltd
D2N2-Derbyshire County Council,6000,D2N2,Digital Bootcamp W3,Training,01/03/2023,1900000325,"11,260.00",Derby Business College Ltd
D2N2-Derbyshire County Council,6000,D2N2,Digital Bootcamp W3,Training,02/03/2023,1900000326,"1,417.50",Technology4Business LTD
D2N2-Derbyshire County Council,6000,D2N2,Digital Bootcamp W3,Training,02/03/2023,1900000327,"2,205.00",Technology4Business LTD
D2N2-Derbyshire County Council,6000,D2N2,Digital Bootcamp W3,Training,03/03/2023,1900000328,"20,080.80",Duplex Business Services Limited
D2N2-Derbyshire County Council,6000,D2N2,Digital Bootcamp W2,Training,03/03/2023,1900000329,"1,257.00",JGW Training Limited T/A Ascento
D2N2-Derbyshire County Council,6000,D2N2,Digital Bootcamp W2,Training,03/03/2023,1900000330,"9,238.95",JGW Training Limited T/A Ascento
D2N2-Derbyshire County Council,6000,D2N2,Core Funding,Catering,07/03/2023,1900000331,"1,874.29",Derby College
D2N2-Derbyshire County Council,6000,D2N2,Growth Hub,3rd Party Payments,07/03/2023,1900000332,"101,268.82",East Midlands Chamber
D2N2-Derbyshire County Council,6000,D2N2,Smartparc Heating,Grants,08/03/2023,1900000333,"1,200,000.00",SEGRO Finance plc
D2N2-Derbyshire County Council,6000,D2N2,Digital Bootcamp W2,Training,14/03/2023,1900000334,"5,028.00",Anicca Digital Ltd
D2N2-Derbyshire County Council,6000,D2N2,Digital Bootcamp W2,Training,16/03/2023,1900000339,"1,649.20",Purple Beard Ltd
D2N2-Derbyshire County Council,6000,D2N2,Digital Bootcamp W2,Training,16/03/2023,1900000340,"3,394.80",Purple Beard Ltd
D2N2-Derbyshire County Council,6000,D2N2,Local Hub Fund,Projects & Acts,17/03/2023,1900000341,"1,525.00",JAKT photography
D2N2-Derbyshire County Council,6000,D2N2,Core Funding,Ext Man. Consultancy,17/03/2023,1900000342,"4,616.36",Vladimir Epuri
D2N2-Derbyshire County Council,6000,D2N2,Hydrogen Refuse,Grants,22/03/2023,1900000344,"66,140.99",South Derbyshire District Council
D2N2-Derbyshire County Council,6000,D2N2,Digital Bootcamp W3,Training,22/03/2023,1900000345,838.25,Purple Beard Ltd
D2N2-Derbyshire County Council,6000,D2N2,Digital Bootcamp W2,Training,23/03/2023,1900000347,628.50,Anicca Digital Ltd
D2N2-Derbyshire County Council,6000,D2N2,Digital Bootcamp W3,Training,24/03/2023,1900000348,"77,493.25",Althaus Digital Limited
D2N2-Derbyshire County Council,6000,D2N2,Careers & Enterprise,General Basic Pay,27/03/2023,1900000349,"9,624.81",East Midlands Chamber
D2N2-Derbyshire County Council,6000,D2N2,Careers & Enterprise,General Nat Ins,27/03/2023,1900000349,857.51,East Midlands Chamber
D2N2-Derbyshire County Council,6000,D2N2,Careers & Enterprise,General Pension,27/03/2023,1900000349,"1,065.30",East Midlands Chamber
D2N2-Derbyshire County Council,6000,D2N2,Careers & Enterprise,General Allowances,27/03/2023,1900000349,60.26,East Midlands Chamber
D2N2-Derbyshire County Council,6000,D2N2,Careers & Enterprise,Mobile Telephones,27/03/2023,1900000349,88.23,East Midlands Chamber
D2N2-Derbyshire County Council,6000,D2N2,Careers & Enterprise,Staff Trav Car Allow,27/03/2023,1900000349,311.18,East Midlands Chamber
D2N2-Derbyshire County Council,6000,D2N2,CEC-Derbyshire,General Basic Pay,27/03/2023,1900000349,"4,115.36",East Midlands Chamber
D2N2-Derbyshire County Council,6000,D2N2,CEC-Derbyshire,General Nat Ins,27/03/2023,1900000349,411.02,East Midlands Chamber
D2N2-Derbyshire County Council,6000,D2N2,CEC-Derbyshire,General Pension,27/03/2023,1900000349,329.23,East Midlands Chamber
D2N2-Derbyshire County Council,6000,D2N2,CEC-Derbyshire,General Allowances,27/03/2023,1900000349,16.00,East Midlands Chamber
D2N2-Derbyshire County Council,6000,D2N2,CEC-Derbyshire,Mobile Telephones,27/03/2023,1900000349,29.42,East Midlands Chamber
D2N2-Derbyshire County Council,6000,D2N2,CEC-Derbyshire,Staff Trav Car Allow,27/03/2023,1900000349,239.74,East Midlands Chamber
D2N2-Derbyshire County Council,6000,D2N2,Careers Hub,General Basic Pay,27/03/2023,1900000349,"10,624.99",East Midlands Chamber
D2N2-Derbyshire County Council,6000,D2N2,Careers Hub,General Nat Ins,27/03/2023,1900000349,"1,152.42",East Midlands Chamber
D2N2-Derbyshire County Council,6000,D2N2,Careers Hub,General Pension,27/03/2023,1900000349,850.01,East Midlands Chamber
D2N2-Derbyshire County Council,6000,D2N2,Careers Hub,General Allowances,27/03/2023,1900000349,44.26,East Midlands Chamber
D2N2-Derbyshire County Council,6000,D2N2,Careers Hub,Mobile Telephones,27/03/2023,1900000349,58.83,East Midlands Chamber
D2N2-Derbyshire County Council,6000,D2N2,Careers Hub,Staff Trav Car Allow,27/03/2023,1900000349,414.03,East Midlands Chamber
D2N2-Derbyshire County Council,6000,D2N2,Core Funding,Subs/Membs/Regs,27/03/2023,1900000350,"2,400.00",Data City Innovations Limited
D2N2-Derbyshire County Council,6000,D2N2,Digital Bootcamp W3,Training,27/03/2023,1900000351,"33,660.00",JGW Training Limited T/A Ascento
D2N2-Derbyshire County Council,6000,D2N2,Local Hub Fund,Projects & Acts,28/03/2023,1900000352,"2,250.00",Work-wise Foundation
D2N2-Derbyshire County Council,6000,D2N2,Digital Bootcamp W2,Training,28/03/2023,1900000353,"7,981.95",Anicca Digital Ltd
D2N2-Derbyshire County Council,6000,D2N2,Digital Bootcamp W2,Training,28/03/2023,1900000354,"9,052.80",Purple Beard Ltd
D2N2-Derbyshire County Council,6000,D2N2,Digital Bootcamp W3,Training,29/03/2023,1900000355,"7,210.00",Provincial Seals Limited
D2N2-Derbyshire County Council,6000,D2N2,Smart Man data Hub,General Basic Pay,29/03/2023,1900000356,"3,083.32",East Midlands Chamber
D2N2-Derbyshire County Council,6000,D2N2,Smart Man data Hub,General Nat Ins,29/03/2023,1900000356,320.89,East Midlands Chamber
D2N2-Derbyshire County Council,6000,D2N2,Smart Man data Hub,General Pension,29/03/2023,1900000356,246.67,East Midlands Chamber
D2N2-Derbyshire County Council,6000,D2N2,Smart Man data Hub,General Allowances,29/03/2023,1900000356,15.08,East Midlands Chamber
D2N2-Derbyshire County Council,6000,D2N2,Smart Man data Hub,Mobile Telephones,29/03/2023,1900000356,19.61,East Midlands Chamber
D2N2-Derbyshire County Council,6000,D2N2,Smart Man data Hub,Staff Trav Car Allow,29/03/2023,1900000356,217.98,East Midlands Chamber
D2N2-Derbyshire County Council,6000,D2N2,Skills Analysis Pnl,General Basic Pay,29/03/2023,1900000356,"2,801.60",East Midlands Chamber
D2N2-Derbyshire County Council,6000,D2N2,Skills Analysis Pnl,General Nat Ins,29/03/2023,1900000356,282.02,East Midlands Chamber
D2N2-Derbyshire County Council,6000,D2N2,Skills Analysis Pnl,General Pension,29/03/2023,1900000356,224.13,East Midlands Chamber
D2N2-Derbyshire County Council,6000,D2N2,Skills Analysis Pnl,General Allowances,29/03/2023,1900000356,15.08,East Midlands Chamber
D2N2-Derbyshire County Council,6000,D2N2,Skills Analysis Pnl,Mobile Telephones,29/03/2023,1900000356,19.61,East Midlands Chamber
D2N2-Derbyshire County Council,6000,D2N2,Key Ac Managment,General Basic Pay,29/03/2023,1900000356,"2,746.67",East Midlands Chamber
D2N2-Derbyshire County Council,6000,D2N2,Key Ac Managment,General Nat Ins,29/03/2023,1900000356,274.44,East Midlands Chamber
D2N2-Derbyshire County Council,6000,D2N2,Key Ac Managment,General Pension,29/03/2023,1900000356,219.73,East Midlands Chamber
D2N2-Derbyshire County Council,6000,D2N2,Key Ac Managment,General Allowances,29/03/2023,1900000356,15.08,East Midlands Chamber
D2N2-Derbyshire County Council,6000,D2N2,Key Ac Managment,Mobile Telephones,29/03/2023,1900000356,19.61,East Midlands Chamber
D2N2-Derbyshire County Council,6000,D2N2,Key Ac Managment,Staff Trav Car Allow,29/03/2023,1900000356,50.20,East Midlands Chamber
D2N2-Derbyshire County Council,6000,D2N2,Core Funding,General Basic Pay,29/03/2023,1900000356,"32,781.64",East Midlands Chamber
D2N2-Derbyshire County Council,6000,D2N2,Core Funding,General Nat Ins,29/03/2023,1900000356,"3,498.71",East Midlands Chamber
D2N2-Derbyshire County Council,6000,D2N2,Core Funding,General Pension,29/03/2023,1900000356,"4,596.12",East Midlands Chamber
D2N2-Derbyshire County Council,6000,D2N2,Core Funding,General Allowances,29/03/2023,1900000356,150.76,East Midlands Chamber
D2N2-Derbyshire County Council,6000,D2N2,Core Funding,Staff Trav Car Allow,29/03/2023,1900000356,551.06,East Midlands Chamber
D2N2-Derbyshire County Council,6000,D2N2,Core Funding,Mobile Telephones,29/03/2023,1900000356,221.70,East Midlands Chamber
D2N2-Derbyshire County Council,6000,D2N2,Core Funding,Rents General,29/03/2023,1900000356,"5,843.19",East Midlands Chamber
D2N2-Derbyshire County Council,6000,D2N2,Core Funding,Computer Software,29/03/2023,1900000356,137.53,East Midlands Chamber
D2N2-Derbyshire County Council,6000,D2N2,Core Funding,Computer Hardware PA,29/03/2023,1900000356,"1,826.88",East Midlands Chamber
D2N2-Derbyshire County Council,6000,D2N2,Careers & Enterprise,Staff Trav Car Allow,29/03/2023,1900000356,95.10,East Midlands Chamber
D2N2-Derbyshire County Council,6000,D2N2,CEC-Derbyshire,Staff Trav Car Allow,29/03/2023,1900000356,95.10,East Midlands Chamber
D2N2-Derbyshire County Council,6000,D2N2,Smart Man data Hub,General Basic Pay,29/03/2023,1900000357,"3,083.34",East Midlands Chamber
D2N2-Derbyshire County Council,6000,D2N2,Smart Man data Hub,General Nat Ins,29/03/2023,1900000357,320.89,East Midlands Chamber
D2N2-Derbyshire County Council,6000,D2N2,Smart Man data Hub,General Pension,29/03/2023,1900000357,246.67,East Midlands Chamber
D2N2-Derbyshire County Council,6000,D2N2,Smart Man data Hub,General Allowances,29/03/2023,1900000357,14.75,East Midlands Chamber
D2N2-Derbyshire County Council,6000,D2N2,Smart Man data Hub,Mobile Telephones,29/03/2023,1900000357,19.61,East Midlands Chamber
D2N2-Derbyshire County Council,6000,D2N2,Smart Man data Hub,Staff Trav Car Allow,29/03/2023,1900000357,110.62,East Midlands Chamber
D2N2-Derbyshire County Council,6000,D2N2,Skills Analysis Pnl,General Basic Pay,29/03/2023,1900000357,"2,801.60",East Midlands Chamber
D2N2-Derbyshire County Council,6000,D2N2,Skills Analysis Pnl,General Nat Ins,29/03/2023,1900000357,282.02,East Midlands Chamber
D2N2-Derbyshire County Council,6000,D2N2,Skills Analysis Pnl,General Pension,29/03/2023,1900000357,224.13,East Midlands Chamber
D2N2-Derbyshire County Council,6000,D2N2,Skills Analysis Pnl,General Allowances,29/03/2023,1900000357,14.75,East Midlands Chamber
D2N2-Derbyshire County Council,6000,D2N2,Skills Analysis Pnl,Mobile Telephones,29/03/2023,1900000357,19.61,East Midlands Chamber
D2N2-Derbyshire County Council,6000,D2N2,Skills Analysis Pnl,Staff Trav Car Allow,29/03/2023,1900000357,7.00,East Midlands Chamber
D2N2-Derbyshire County Council,6000,D2N2,Key Ac Managment,General Basic Pay,29/03/2023,1900000357,"2,746.67",East Midlands Chamber
D2N2-Derbyshire County Council,6000,D2N2,Key Ac Managment,General Nat Ins,29/03/2023,1900000357,274.44,East Midlands Chamber
D2N2-Derbyshire County Council,6000,D2N2,Key Ac Managment,General Pension,29/03/2023,1900000357,219.73,East Midlands Chamber
D2N2-Derbyshire County Council,6000,D2N2,Key Ac Managment,General Allowances,29/03/2023,1900000357,14.75,East Midlands Chamber
D2N2-Derbyshire County Council,6000,D2N2,Key Ac Managment,Mobile Telephones,29/03/2023,1900000357,19.61,East Midlands Chamber
D2N2-Derbyshire County Council,6000,D2N2,Core Funding,General Basic Pay,29/03/2023,1900000357,"53,526.21",East Midlands Chamber
D2N2-Derbyshire County Council,6000,D2N2,Core Funding,General Nat Ins,29/03/2023,1900000357,"4,851.79",East Midlands Chamber
D2N2-Derbyshire County Council,6000,D2N2,Core Funding,General Pension,29/03/2023,1900000357,"5,344.46",East Midlands Chamber
D2N2-Derbyshire County Council,6000,D2N2,Core Funding,General Allowances,29/03/2023,1900000357,189.30,East Midlands Chamber
D2N2-Derbyshire County Council,6000,D2N2,Core Funding,Staff Trav Car Allow,29/03/2023,1900000357,69.15,East Midlands Chamber
D2N2-Derbyshire County Council,6000,D2N2,Core Funding,Mobile Telephones,29/03/2023,1900000357,216.37,East Midlands Chamber
D2N2-Derbyshire County Council,6000,D2N2,Core Funding,Rents General,29/03/2023,1900000357,"6,394.75",East Midlands Chamber
D2N2-Derbyshire County Council,6000,D2N2,Core Funding,Conf & Func Expenses,29/03/2023,1900000357,157.00,East Midlands Chamber
D2N2-Derbyshire County Council,6000,D2N2,Core Funding,Computer Software,29/03/2023,1900000357,132.22,East Midlands Chamber
D2N2-Derbyshire County Council,6000,D2N2,Core Funding,Gen Office Expenses,29/03/2023,1900000357,40.95,East Midlands Chamber
D2N2-Derbyshire County Council,6000,D2N2,Core Funding,Professional Fees,29/03/2023,1900000357,600.00,East Midlands Chamber
D2N2-Derbyshire County Council,6000,D2N2,Careers & Enterprise,European Social Fund,29/03/2023,1900000358,"-3,273.40",General Basic Pay
D2N2-Derbyshire County Council,6000,D2N2,Careers & Enterprise,General Basic Pay,29/03/2023,1900000358,"8,336.45",East Midlands Chamber
D2N2-Derbyshire County Council,6000,D2N2,Careers & Enterprise,General Nat Ins,29/03/2023,1900000358,784.33,East Midlands Chamber
D2N2-Derbyshire County Council,6000,D2N2,Careers & Enterprise,General Pension,29/03/2023,1900000358,910.53,East Midlands Chamber
D2N2-Derbyshire County Council,6000,D2N2,Careers & Enterprise,General Allowances,29/03/2023,1900000358,49.70,East Midlands Chamber
D2N2-Derbyshire County Council,6000,D2N2,Careers & Enterprise,Mobile Telephones,29/03/2023,1900000358,88.23,East Midlands Chamber
D2N2-Derbyshire County Council,6000,D2N2,Careers & Enterprise,Staff Trav Car Allow,29/03/2023,1900000358,299.10,East Midlands Chamber
D2N2-Derbyshire County Council,6000,D2N2,CEC-Derbyshire,General Basic Pay,29/03/2023,1900000358,"4,178.82",East Midlands Chamber
D2N2-Derbyshire County Council,6000,D2N2,CEC-Derbyshire,General Nat Ins,29/03/2023,1900000358,419.78,East Midlands Chamber
D2N2-Derbyshire County Council,6000,D2N2,CEC-Derbyshire,General Pension,29/03/2023,1900000358,334.31,East Midlands Chamber
D2N2-Derbyshire County Council,6000,D2N2,CEC-Derbyshire,General Allowances,29/03/2023,1900000358,19.55,East Midlands Chamber
D2N2-Derbyshire County Council,6000,D2N2,CEC-Derbyshire,Mobile Telephones,29/03/2023,1900000358,29.42,East Midlands Chamber
D2N2-Derbyshire County Council,6000,D2N2,CEC-Derbyshire,Staff Trav Car Allow,29/03/2023,1900000358,148.00,East Midlands Chamber
D2N2-Derbyshire County Council,6000,D2N2,Careers Hub,General Basic Pay,29/03/2023,1900000358,"10,624.99",East Midlands Chamber
D2N2-Derbyshire County Council,6000,D2N2,Careers Hub,General Nat Ins,29/03/2023,1900000358,"1,152.42",East Midlands Chamber
D2N2-Derbyshire County Council,6000,D2N2,Careers Hub,General Pension,29/03/2023,1900000358,850.01,East Midlands Chamber
D2N2-Derbyshire County Council,6000,D2N2,Careers Hub,General Allowances,29/03/2023,1900000358,45.23,East Midlands Chamber
D2N2-Derbyshire County Council,6000,D2N2,Careers Hub,Mobile Telephones,29/03/2023,1900000358,58.83,East Midlands Chamber
D2N2-Derbyshire County Council,6000,D2N2,Careers Hub,Staff Trav Car Allow,29/03/2023,1900000358,368.12,East Midlands Chamber
D2N2-Derbyshire County Council,6000,D2N2,Core Funding,Subs/Membs/Regs,30/03/2023,1900000359,609.10,Copyright Licensing Agency Ltd
D2N2-Derbyshire County Council,6000,D2N2,Digital Bootcamp W2,Training,30/03/2023,1900000360,"12,611.90",JGW Training Limited T/A Ascento
D2N2-Derbyshire County Council,6000,D2N2,,,,,,
